[Event "Titled Tuesday Blitz August 02 Early 2022"]
[White "Zhigalko, Sergei"]
[Black "Harmon-Vellotti, Luke"]
[WhiteFideId "13502956"]
[BlackFideId "2030012"]
[WhiteElo "2662"]
[BlackElo "2354"]
[Result "0-1"]
[Round "09"]
[TimeControl "180+1"]
[Date "2022.08.02"]
[WhiteClock "0:00:06"]
[BlackClock "0:00:19"]

1. e4 {[%clk 0:03:00]}  e6 {[%clk 0:03:00]} 2. d4 {[%clk 0:03:00]}  d5 {[%clk 0:03:00]} 3. e5 {[%clk 0:03:00]}  c5 {[%clk 0:03:01]} 4. c3 {[%clk 0:03:00]}  Nc6 {[%clk 0:03:01]} 5. Nf3 {[%clk 0:03:00]}  Qb6 {[%clk 0:02:58]} 6. a3 {[%clk 0:02:59]}  c4 {[%clk 0:02:58]} 7. Nbd2 {[%clk 0:02:59]}  Na5 {[%clk 0:02:51]} 8. Be2 {[%clk 0:02:59]}  Bd7 {[%clk 0:02:50]} 9. O-O {[%clk 0:02:59]}  Ne7 {[%clk 0:02:48]} 10. h4 {[%clk 0:02:57]}  Qc7 {[%clk 0:02:46]} 11. h5 {[%clk 0:02:54]}  h6 {[%clk 0:02:46]} 12. Nh4 {[%clk 0:02:53]}  Nc8 {[%clk 0:02:45]} 13. f4 {[%clk 0:02:53]}  Nb6 {[%clk 0:02:43]} 14. f5 {[%clk 0:02:48]}  O-O-O {[%clk 0:02:40]} 15. Bg4 {[%clk 0:02:41]}  exf5 {[%clk 0:02:14]} 16. Nxf5 {[%clk 0:02:22]}  Kb8 {[%clk 0:02:12]} 17. Qf3 {[%clk 0:01:53]}  Ka8 {[%clk 0:02:00]} 18. Rb1 {[%clk 0:01:41]}  Be6 {[%clk 0:01:41]} 19. Qh3 {[%clk 0:01:34]}  Qd7 {[%clk 0:01:39]} 20. Nf3 {[%clk 0:01:30]}  Be7 {[%clk 0:00:58]} 21. Nh2 {[%clk 0:01:20]}  Rdg8 {[%clk 0:00:51]} 22. Be3 {[%clk 0:01:11]}  Nc6 {[%clk 0:00:44]} 23. Rf2 {[%clk 0:01:07]}  Bd8 {[%clk 0:00:40]} 24. Rbf1 {[%clk 0:01:06]}  Nc8 {[%clk 0:00:36]} 25. Ng3 {[%clk 0:00:48]}  Qe8 {[%clk 0:00:32]} 26. Rxf7 {[%clk 0:00:35]}  Bxf7 {[%clk 0:00:27]} 27. Bxc8 {[%clk 0:00:36]}  Rf8 {[%clk 0:00:19]} 28. Bd7 {[%clk 0:00:28]}  Qe7 {[%clk 0:00:19]} 29. e6 {[%clk 0:00:16]}  Bg8 {[%clk 0:00:18]} 30. Nf5 {[%clk 0:00:16]}  Bxe6 {[%clk 0:00:15]} 31. Nxe7 {[%clk 0:00:05]}  Rxf1+ {[%clk 0:00:16]} 32. Nxf1 {[%clk 0:00:03]}  Bxh3 {[%clk 0:00:16]} 33. Nxc6 {[%clk 0:00:01]}  Bxd7 {[%clk 0:00:16]} 34. Ne5 {[%clk 0:00:01]}  Be6 {[%clk 0:00:16]} 35. Ng6 {[%clk 0:00:01]}  Re8 {[%clk 0:00:16]} 36. Bf4 {[%clk 0:00:01]}  Bf7 {[%clk 0:00:17]} 37. Ne3 {[%clk 0:00:02]}  Bf6 {[%clk 0:00:17]} 38. Kf2 {[%clk 0:00:02]}  b6 {[%clk 0:00:16]} 39. Nf5 {[%clk 0:00:02]}  Re6 {[%clk 0:00:15]} 40. Kf3 {[%clk 0:00:01]}  Re1 {[%clk 0:00:15]} 41. Kf2 {[%clk 0:00:01]}  Rb1 {[%clk 0:00:15]} 42. Nd6 {[%clk 0:00:01]}  Rxb2+ {[%clk 0:00:15]} 43. Kf3 {[%clk 0:00:02]}  Be6 {[%clk 0:00:16]} 44. Ne8 {[%clk 0:00:02]}  Bf7 {[%clk 0:00:12]} 45. Nxf6 {[%clk 0:00:02]}  gxf6 {[%clk 0:00:13]} 46. Bxh6 {[%clk 0:00:03]}  Rc2 {[%clk 0:00:14]} 47. Bd2 {[%clk 0:00:02]}  Rxd2 {[%clk 0:00:14]} 48. Nf4 {[%clk 0:00:03]}  Bxh5+ {[%clk 0:00:13]} 49. Nxh5 {[%clk 0:00:03]}  Rd3+ {[%clk 0:00:14]} 50. Kf4 {[%clk 0:00:04]}  Rxc3 {[%clk 0:00:15]} 51. Nxf6 {[%clk 0:00:05]}  Rxa3 {[%clk 0:00:15]} 52. Nxd5 {[%clk 0:00:05]}  Kb7 {[%clk 0:00:16]} 53. g4 {[%clk 0:00:05]}  c3 {[%clk 0:00:16]} 54. Ne3 {[%clk 0:00:05]}  Ra2 {[%clk 0:00:16]} 55. g5 {[%clk 0:00:05]}  c2 {[%clk 0:00:17]} 56. Nxc2 {[%clk 0:00:05]}  Rxc2 {[%clk 0:00:18]} 57. d5 {[%clk 0:00:06]}  Rg2 {[%clk 0:00:18]} 58. d6 {[%clk 0:00:06]}  Kc6 {[%clk 0:00:19]} 0-1


[Site "https://www.chess.com"]

[Event "Titled Tuesday Blitz August 02 Early 2022"]
[White "Agasarov, Benik"]
[Black "Chen, Justin"]
[WhiteFideId "13314823"]
[BlackFideId "2098199"]
[WhiteElo "2734"]
[BlackElo "2289"]
[Result "1-0"]
[Round "10"]
[TimeControl "180+1"]
[Date "2022.08.02"]
[WhiteClock "0:01:24"]
[BlackClock "0:00:02"]

1. e4 {[%clk 0:03:00]}  e5 {[%clk 0:02:55]} 2. Nf3 {[%clk 0:03:00]}  Nc6 {[%clk 0:02:55]} 3. Bb5 {[%clk 0:02:59]}  f5 {[%clk 0:02:55]} 4. d3 {[%clk 0:02:59]}  fxe4 {[%clk 0:02:56]} 5. dxe4 {[%clk 0:02:59]}  Nf6 {[%clk 0:02:56]} 6. O-O {[%clk 0:03:00]}  d6 {[%clk 0:02:55]} 7. Bc4 {[%clk 0:02:56]}  Na5 {[%clk 0:02:50]} 8. Bd3 {[%clk 0:02:22]}  Be7 {[%clk 0:02:43]} 9. b4 {[%clk 0:02:16]}  Nc6 {[%clk 0:02:42]} 10. b5 {[%clk 0:02:16]}  Nb8 {[%clk 0:02:35]} 11. Bc4 {[%clk 0:02:16]}  c6 {[%clk 0:01:41]} 12. Nc3 {[%clk 0:01:50]}  Rf8 {[%clk 0:00:09]} 13. a4 {[%clk 0:01:45]}  Nbd7 {[%clk 0:00:07]} 14. Ng5 {[%clk 0:01:37]}  Nc5 {[%clk 0:00:07]} 15. Nxh7 {[%clk 0:01:34]}  Nxh7 {[%clk 0:00:04]} 16. Qh5+ {[%clk 0:01:35]}  Kd7 {[%clk 0:00:05]} 17. Qxh7 {[%clk 0:01:35]}  Bf6 {[%clk 0:00:02]} 18. Be3 {[%clk 0:01:30]}  Rh8 {[%clk 0:00:02]} 19. Qg6 {[%clk 0:01:29]}  Ne6 {[%clk 0:00:02]} 20. Qf7+ {[%clk 0:01:24]} 1-0


[Site "https://www.chess.com"]

[Event "Titled Tuesday Blitz August 02 Early 2022"]
[White "Ajay, Karthikeyan"]
[Black "Vakhlamov, Igor L."]
[WhiteFideId "35011685"]
[BlackFideId "24126748"]
[WhiteElo "2183"]
[BlackElo "2401"]
[Result "1-0"]
[Round "10"]
[TimeControl "180+1"]
[Date "2022.08.02"]
[WhiteClock "0:00:34"]
[BlackClock "0:00:34"]

1. e4 {[%clk 0:02:12]}  c5 {[%clk 0:02:52]} 2. Nf3 {[%clk 0:02:12]}  Nc6 {[%clk 0:02:52]} 3. Bb5 {[%clk 0:02:12]}  Nf6 {[%clk 0:02:53]} 4. e5 {[%clk 0:02:09]}  Nd5 {[%clk 0:02:52]} 5. O-O {[%clk 0:02:08]}  Nc7 {[%clk 0:02:52]} 6. Bxc6 {[%clk 0:02:08]}  dxc6 {[%clk 0:02:53]} 7. h3 {[%clk 0:02:08]}  Bf5 {[%clk 0:02:53]} 8. d3 {[%clk 0:02:07]}  e6 {[%clk 0:02:53]} 9. Bg5 {[%clk 0:02:02]}  Qd7 {[%clk 0:02:47]} 10. Nbd2 {[%clk 0:02:00]}  h6 {[%clk 0:02:46]} 11. Bh4 {[%clk 0:01:59]}  g5 {[%clk 0:02:46]} 12. Bg3 {[%clk 0:02:00]}  Be7 {[%clk 0:02:46]} 13. Re1 {[%clk 0:01:58]}  O-O-O {[%clk 0:02:44]} 14. Nc4 {[%clk 0:01:50]}  Ne8 {[%clk 0:02:24]} 15. Nfd2 {[%clk 0:01:45]}  h5 {[%clk 0:02:21]} 16. Ne4 {[%clk 0:01:43]}  Kb8 {[%clk 0:02:16]} 17. Nf6 {[%clk 0:01:32]}  Qc7 {[%clk 0:02:06]} 18. Nxh5 {[%clk 0:01:29]}  b5 {[%clk 0:02:02]} 19. Ne3 {[%clk 0:01:27]}  Bg6 {[%clk 0:02:02]} 20. Nf6 {[%clk 0:01:27]}  Nxf6 {[%clk 0:01:53]} 21. exf6 {[%clk 0:01:27]}  Bd6 {[%clk 0:01:54]} 22. Bxd6 {[%clk 0:01:22]}  Qxd6 {[%clk 0:01:55]} 23. Qg4 {[%clk 0:01:22]}  Bh5 {[%clk 0:01:32]} 24. Qg3 {[%clk 0:01:17]}  Rh6 {[%clk 0:01:32]} 25. Qxd6+ {[%clk 0:00:58]}  Rxd6 {[%clk 0:01:33]} 26. Nf1 {[%clk 0:00:58]}  Rxf6 {[%clk 0:01:30]} 27. Ng3 {[%clk 0:00:58]}  Bg6 {[%clk 0:01:28]} 28. Re5 {[%clk 0:00:59]}  Rd5 {[%clk 0:01:28]} 29. Rae1 {[%clk 0:00:59]}  Kc7 {[%clk 0:01:00]} 30. Rxd5 {[%clk 0:00:49]}  cxd5 {[%clk 0:01:01]} 31. Re5 {[%clk 0:00:50]}  c4 {[%clk 0:00:46]} 32. dxc4 {[%clk 0:00:48]}  bxc4 {[%clk 0:00:47]} 33. c3 {[%clk 0:00:48]}  Bf5 {[%clk 0:00:44]} 34. Nxf5 {[%clk 0:00:46]}  Rxf5 {[%clk 0:00:45]} 35. Rxf5 {[%clk 0:00:46]}  exf5 {[%clk 0:00:46]} 36. f4 {[%clk 0:00:43]}  gxf4 {[%clk 0:00:41]} 37. Kf2 {[%clk 0:00:42]}  Kd6 {[%clk 0:00:41]} 38. Kf3 {[%clk 0:00:43]}  Ke5 {[%clk 0:00:41]} 39. h4 {[%clk 0:00:43]}  a5 {[%clk 0:00:42]} 40. a4 {[%clk 0:00:36]}  d4 {[%clk 0:00:30]} 41. cxd4+ {[%clk 0:00:35]}  Kxd4 {[%clk 0:00:31]} 42. Kxf4 {[%clk 0:00:29]}  Kd3 {[%clk 0:00:28]} 43. h5 {[%clk 0:00:29]}  Kc2 {[%clk 0:00:29]} 44. h6 {[%clk 0:00:29]}  Kxb2 {[%clk 0:00:30]} 45. h7 {[%clk 0:00:30]}  c3 {[%clk 0:00:31]} 46. h8=Q {[%clk 0:00:31]}  Kb3 {[%clk 0:00:31]} 47. Kxf5 {[%clk 0:00:30]}  c2 {[%clk 0:00:32]} 48. Qa1 {[%clk 0:00:30]}  f6 {[%clk 0:00:28]} 49. Kxf6 {[%clk 0:00:30]}  Kb4 {[%clk 0:00:28]} 50. Qb2+ {[%clk 0:00:30]}  Kxa4 {[%clk 0:00:28]} 51. Qxc2+ {[%clk 0:00:31]}  Ka3 {[%clk 0:00:29]} 52. Qb1 {[%clk 0:00:28]}  a4 {[%clk 0:00:30]} 53. Qb5 {[%clk 0:00:29]}  Ka2 {[%clk 0:00:29]} 54. Qxa4+ {[%clk 0:00:30]}  Kb2 {[%clk 0:00:30]} 55. Qc4 {[%clk 0:00:30]}  Ka3 {[%clk 0:00:30]} 56. Qb5 {[%clk 0:00:31]}  Ka2 {[%clk 0:00:30]} 57. Qb4 {[%clk 0:00:31]}  Ka1 {[%clk 0:00:31]} 58. Ke5 {[%clk 0:00:32]}  Ka2 {[%clk 0:00:32]} 59. Kd4 {[%clk 0:00:33]}  Ka1 {[%clk 0:00:33]} 60. Kc3 {[%clk 0:00:34]}  Ka2 {[%clk 0:00:34]} 61. Qb2# {[%clk 0:00:34]} 1-0


[Site "https://www.chess.com"]

[Event "Titled Tuesday Blitz August 02 Early 2022"]
[White "Boros, Denes"]
[Black "Harsha Bharathakoti"]
[WhiteFideId "722340"]
[BlackFideId "5078776"]
[WhiteElo "2464"]
[BlackElo "2575"]
[Result "0-1"]
[Round "10"]
[TimeControl "180+1"]
[Date "2022.08.02"]
[WhiteClock "0:00:14"]
[BlackClock "0:00:12"]

1. e4 {[%clk 0:03:00]}  e6 {[%clk 0:02:59]} 2. c4 {[%clk 0:02:59]}  c5 {[%clk 0:02:55]} 3. Nc3 {[%clk 0:02:59]}  Nc6 {[%clk 0:02:55]} 4. Nge2 {[%clk 0:02:58]}  Nd4 {[%clk 0:02:43]} 5. d3 {[%clk 0:02:58]}  Ne7 {[%clk 0:02:05]} 6. Nxd4 {[%clk 0:02:55]}  cxd4 {[%clk 0:02:06]} 7. Ne2 {[%clk 0:02:46]}  Nc6 {[%clk 0:02:05]} 8. g3 {[%clk 0:02:41]}  b5 {[%clk 0:02:05]} 9. Bg2 {[%clk 0:02:34]}  bxc4 {[%clk 0:01:59]} 10. dxc4 {[%clk 0:02:34]}  Bb4+ {[%clk 0:01:42]} 11. Bd2 {[%clk 0:02:29]}  Bxd2+ {[%clk 0:01:42]} 12. Qxd2 {[%clk 0:02:30]}  e5 {[%clk 0:01:42]} 13. Nc1 {[%clk 0:02:26]}  a5 {[%clk 0:01:41]} 14. Nd3 {[%clk 0:02:25]}  d6 {[%clk 0:01:36]} 15. O-O {[%clk 0:02:23]}  O-O {[%clk 0:01:35]} 16. b3 {[%clk 0:02:13]}  Qb6 {[%clk 0:01:31]} 17. Rfc1 {[%clk 0:02:11]}  Nb4 {[%clk 0:01:25]} 18. c5 {[%clk 0:02:08]}  Qb8 {[%clk 0:01:17]} 19. Nb2 {[%clk 0:01:28]}  Be6 {[%clk 0:01:06]} 20. Na4 {[%clk 0:01:25]}  Rd8 {[%clk 0:00:55]} 21. Nb6 {[%clk 0:01:12]}  Ra7 {[%clk 0:00:54]} 22. Nd5 {[%clk 0:01:13]}  dxc5 {[%clk 0:00:36]} 23. Rxc5 {[%clk 0:01:12]}  Rad7 {[%clk 0:00:37]} 24. Rxa5 {[%clk 0:00:51]}  Nxd5 {[%clk 0:00:37]} 25. exd5 {[%clk 0:00:52]}  Bxd5 {[%clk 0:00:38]} 26. Bh3 {[%clk 0:00:52]}  Ra7 {[%clk 0:00:31]} 27. Re1 {[%clk 0:00:50]}  Rxa5 {[%clk 0:00:27]} 28. Qxa5 {[%clk 0:00:50]}  f6 {[%clk 0:00:28]} 29. Rc1 {[%clk 0:00:46]}  Bf7 {[%clk 0:00:27]} 30. Bf5 {[%clk 0:00:30]}  g6 {[%clk 0:00:24]} 31. Bd3 {[%clk 0:00:29]}  f5 {[%clk 0:00:25]} 32. Rc7 {[%clk 0:00:26]}  e4 {[%clk 0:00:20]} 33. Bc4 {[%clk 0:00:26]}  Bxc4 {[%clk 0:00:20]} 34. bxc4 {[%clk 0:00:23]}  Qb1+ {[%clk 0:00:17]} 35. Kg2 {[%clk 0:00:23]}  e3 {[%clk 0:00:18]} 36. f3 {[%clk 0:00:15]}  e2 {[%clk 0:00:12]} 37. Qe5 {[%clk 0:00:14]}  Qf1# {[%clk 0:00:12]} 0-1


[Site "https://www.chess.com"]

[Event "Titled Tuesday Blitz August 02 Early 2022"]
[White "Bortnyk, Olexandr"]
[Black "Gokerkan, Cem Kaan"]
[WhiteFideId "14120828"]
[BlackFideId "6336760"]
[WhiteElo "2723"]
[BlackElo "2364"]
[Result "1-0"]
[Round "10"]
[TimeControl "180+1"]
[Date "2022.08.02"]
[WhiteClock "0:01:29"]
[BlackClock "0:00:08"]

1. d4 {[%clk 0:03:00]}  Nf6 {[%clk 0:02:59]} 2. Nc3 {[%clk 0:03:01]}  d5 {[%clk 0:03:00]} 3. Bf4 {[%clk 0:03:00]}  e6 {[%clk 0:03:00]} 4. Nb5 {[%clk 0:03:00]}  Na6 {[%clk 0:03:01]} 5. e3 {[%clk 0:03:01]}  Be7 {[%clk 0:03:02]} 6. Nf3 {[%clk 0:03:01]}  O-O {[%clk 0:03:02]} 7. Ne5 {[%clk 0:03:01]}  c6 {[%clk 0:03:01]} 8. Nc3 {[%clk 0:03:02]}  Nb8 {[%clk 0:03:00]} 9. Bd3 {[%clk 0:03:01]}  c5 {[%clk 0:02:59]} 10. Qf3 {[%clk 0:02:58]}  Nc6 {[%clk 0:02:54]} 11. O-O-O {[%clk 0:02:54]}  cxd4 {[%clk 0:02:40]} 12. exd4 {[%clk 0:02:53]}  Nxd4 {[%clk 0:02:26]} 13. Bxh7+ {[%clk 0:02:52]}  Nxh7 {[%clk 0:02:22]} 14. Rxd4 {[%clk 0:02:53]}  Bd7 {[%clk 0:02:05]} 15. Nxd5 {[%clk 0:02:49]}  exd5 {[%clk 0:02:03]} 16. Rxd5 {[%clk 0:02:40]}  Nf6 {[%clk 0:02:01]} 17. Nxd7 {[%clk 0:02:38]}  Nxd5 {[%clk 0:01:54]} 18. Qxd5 {[%clk 0:02:39]}  Re8 {[%clk 0:01:48]} 19. Rd1 {[%clk 0:02:33]}  Qc8 {[%clk 0:01:36]} 20. Rd3 {[%clk 0:02:25]}  Qc6 {[%clk 0:01:28]} 21. Qxc6 {[%clk 0:02:17]}  bxc6 {[%clk 0:01:29]} 22. c3 {[%clk 0:02:17]}  Rad8 {[%clk 0:01:23]} 23. Kc2 {[%clk 0:02:16]}  Bh4 {[%clk 0:01:01]} 24. Be3 {[%clk 0:02:14]}  Re6 {[%clk 0:00:35]} 25. Nc5 {[%clk 0:02:04]}  Rxd3 {[%clk 0:00:36]} 26. Nxd3 {[%clk 0:02:05]}  Re7 {[%clk 0:00:31]} 27. g3 {[%clk 0:02:03]}  Bf6 {[%clk 0:00:31]} 28. h4 {[%clk 0:02:04]}  Rc7 {[%clk 0:00:26]} 29. b4 {[%clk 0:02:04]}  Be7 {[%clk 0:00:26]} 30. a4 {[%clk 0:02:04]}  Bd6 {[%clk 0:00:26]} 31. a5 {[%clk 0:02:04]}  f6 {[%clk 0:00:26]} 32. Kb3 {[%clk 0:02:03]}  Kf7 {[%clk 0:00:26]} 33. Kc4 {[%clk 0:02:03]}  Ke6 {[%clk 0:00:26]} 34. a6 {[%clk 0:02:04]}  Rf7 {[%clk 0:00:20]} 35. Nc1 {[%clk 0:02:01]}  Bb8 {[%clk 0:00:20]} 36. Nb3 {[%clk 0:02:00]}  Kd7 {[%clk 0:00:15]} 37. Nc5+ {[%clk 0:02:00]}  Kc8 {[%clk 0:00:15]} 38. h5 {[%clk 0:01:52]}  Re7 {[%clk 0:00:15]} 39. Bd4 {[%clk 0:01:49]}  Re1 {[%clk 0:00:15]} 40. g4 {[%clk 0:01:35]}  Be5 {[%clk 0:00:15]} 41. Nd3 {[%clk 0:01:34]}  Ra1 {[%clk 0:00:08]} 42. Nxe5 {[%clk 0:01:31]}  fxe5 {[%clk 0:00:09]} 43. Bxe5 {[%clk 0:01:32]}  Rg1 {[%clk 0:00:07]} 44. f3 {[%clk 0:01:31]}  Rf1 {[%clk 0:00:08]} 45. Bxg7 {[%clk 0:01:29]} 1-0


[Site "https://www.chess.com"]

[Event "Titled Tuesday Blitz August 02 Early 2022"]
[White "Cnejev, Vladimir-Alexandru"]
[Black "Munkhgal, Gombosuren"]
[WhiteFideId "1260898"]
[BlackFideId "4901266"]
[WhiteElo "1951"]
[BlackElo "2576"]
[Result "1-0"]
[Round "10"]
[TimeControl "180+1"]
[Date "2022.08.02"]
[WhiteClock "0:00:17"]
[BlackClock "0:00:25"]

1. e4 {[%clk 0:03:00]}  d6 {[%clk 0:02:58]} 2. d4 {[%clk 0:03:00]}  Nf6 {[%clk 0:02:58]} 3. Nd2 {[%clk 0:03:01]}  g6 {[%clk 0:02:57]} 4. Ngf3 {[%clk 0:03:00]}  Bg7 {[%clk 0:02:57]} 5. c3 {[%clk 0:03:00]}  O-O {[%clk 0:02:55]} 6. Bd3 {[%clk 0:03:01]}  Nbd7 {[%clk 0:02:50]} 7. O-O {[%clk 0:03:02]}  e5 {[%clk 0:02:45]} 8. Re1 {[%clk 0:03:02]}  Nh5 {[%clk 0:02:40]} 9. a4 {[%clk 0:02:58]}  Nf4 {[%clk 0:02:36]} 10. Bf1 {[%clk 0:02:58]}  f5 {[%clk 0:02:21]} 11. exf5 {[%clk 0:02:33]}  gxf5 {[%clk 0:02:16]} 12. dxe5 {[%clk 0:02:31]}  dxe5 {[%clk 0:02:13]} 13. Nc4 {[%clk 0:02:22]}  Ng6 {[%clk 0:02:02]} 14. Bg5 {[%clk 0:01:49]}  Qe8 {[%clk 0:01:56]} 15. Qd5+ {[%clk 0:01:38]}  Kh8 {[%clk 0:01:52]} 16. Rad1 {[%clk 0:01:39]}  Nb6 {[%clk 0:01:46]} 17. Nxb6 {[%clk 0:01:33]}  axb6 {[%clk 0:01:45]} 18. h4 {[%clk 0:01:22]}  c6 {[%clk 0:01:22]} 19. Qd6 {[%clk 0:00:53]}  Rxa4 {[%clk 0:01:18]} 20. h5 {[%clk 0:00:52]}  Nf4 {[%clk 0:01:09]} 21. h6 {[%clk 0:00:46]}  Re4 {[%clk 0:00:43]} 22. hxg7+ {[%clk 0:00:44]}  Kxg7 {[%clk 0:00:43]} 23. Bh6+ {[%clk 0:00:44]}  Kg8 {[%clk 0:00:44]} 24. Qxf8+ {[%clk 0:00:42]}  Qxf8 {[%clk 0:00:44]} 25. Bxf8 {[%clk 0:00:43]}  Kxf8 {[%clk 0:00:44]} 26. Rxe4 {[%clk 0:00:43]}  fxe4 {[%clk 0:00:45]} 27. Nxe5 {[%clk 0:00:43]}  Bf5 {[%clk 0:00:42]} 28. g3 {[%clk 0:00:36]}  Nd5 {[%clk 0:00:41]} 29. Bc4 {[%clk 0:00:33]}  Nf6 {[%clk 0:00:40]} 30. Kg2 {[%clk 0:00:28]}  Ke7 {[%clk 0:00:40]} 31. f3 {[%clk 0:00:24]}  b5 {[%clk 0:00:40]} 32. Be2 {[%clk 0:00:21]}  Ke6 {[%clk 0:00:41]} 33. f4 {[%clk 0:00:14]}  e3 {[%clk 0:00:41]} 34. g4 {[%clk 0:00:14]}  Be4+ {[%clk 0:00:41]} 35. Kg3 {[%clk 0:00:15]}  Bd5 {[%clk 0:00:39]} 36. Bf3 {[%clk 0:00:14]}  Bb3 {[%clk 0:00:38]} 37. Re1 {[%clk 0:00:14]}  Kd6 {[%clk 0:00:34]} 38. Rxe3 {[%clk 0:00:14]}  h6 {[%clk 0:00:31]} 39. g5 {[%clk 0:00:14]}  hxg5 {[%clk 0:00:32]} 40. fxg5 {[%clk 0:00:15]}  Ng8 {[%clk 0:00:32]} 41. g6 {[%clk 0:00:15]}  Ne7 {[%clk 0:00:32]} 42. Kf4 {[%clk 0:00:15]}  b6 {[%clk 0:00:24]} 43. Kg5 {[%clk 0:00:15]}  c5 {[%clk 0:00:23]} 44. Kf6 {[%clk 0:00:15]}  Ng8+ {[%clk 0:00:22]} 45. Kg5 {[%clk 0:00:15]}  Ne7 {[%clk 0:00:23]} 46. Nf7+ {[%clk 0:00:15]}  Kd7 {[%clk 0:00:23]} 47. Bg4+ {[%clk 0:00:16]}  Ke8 {[%clk 0:00:22]} 48. Nd6+ {[%clk 0:00:16]}  Kf8 {[%clk 0:00:22]} 49. g7+ {[%clk 0:00:16]}  Kxg7 {[%clk 0:00:21]} 50. Rxe7+ {[%clk 0:00:17]}  Kf8 {[%clk 0:00:21]} 51. Rb7 {[%clk 0:00:17]}  b4 {[%clk 0:00:21]} 52. Rxb6 {[%clk 0:00:17]}  bxc3 {[%clk 0:00:22]} 53. bxc3 {[%clk 0:00:18]}  c4 {[%clk 0:00:21]} 54. Be6 {[%clk 0:00:15]}  Ke7 {[%clk 0:00:21]} 55. Bxc4 {[%clk 0:00:15]}  Bc2 {[%clk 0:00:22]} 56. Nf5+ {[%clk 0:00:15]}  Kd7 {[%clk 0:00:23]} 57. Rb7+ {[%clk 0:00:14]}  Kc6 {[%clk 0:00:23]} 58. Re7 {[%clk 0:00:15]}  Kc5 {[%clk 0:00:23]} 59. Bg8 {[%clk 0:00:15]}  Kc6 {[%clk 0:00:23]} 60. Re5 {[%clk 0:00:16]}  Kd7 {[%clk 0:00:23]} 61. Bd5 {[%clk 0:00:16]}  Kc7 {[%clk 0:00:23]} 62. Kf6 {[%clk 0:00:16]}  Kd8 {[%clk 0:00:24]} 63. Re6 {[%clk 0:00:16]}  Kd7 {[%clk 0:00:24]} 64. Rd6+ {[%clk 0:00:16]}  Ke8 {[%clk 0:00:25]} 65. Bc6+ {[%clk 0:00:16]}  Kf8 {[%clk 0:00:25]} 66. Rd8# {[%clk 0:00:17]} 1-0


[Site "https://www.chess.com"]

[Event "Titled Tuesday Blitz August 02 Early 2022"]
[White "Csonka, Balazs"]
[Black "Melikyan, Gnel"]
[WhiteFideId "742910"]
[BlackFideId "54109990"]
[WhiteElo "2404"]
[BlackElo "1772"]
[Result "1-0"]
[Round "10"]
[TimeControl "180+1"]
[Date "2022.08.02"]
[WhiteClock "0:00:03"]
[BlackClock "0:00:13"]

1. c4 {[%clk 0:03:00]}  e6 {[%clk 0:02:57]} 2. Nc3 {[%clk 0:03:00]}  d5 {[%clk 0:02:56]} 3. e3 {[%clk 0:02:57]}  Nf6 {[%clk 0:02:50]} 4. Nf3 {[%clk 0:02:57]}  b6 {[%clk 0:02:48]} 5. cxd5 {[%clk 0:02:50]}  Nxd5 {[%clk 0:02:47]} 6. Nxd5 {[%clk 0:02:49]}  Qxd5 {[%clk 0:02:46]} 7. b3 {[%clk 0:02:43]}  Ba6 {[%clk 0:02:44]} 8. Bxa6 {[%clk 0:02:27]}  Nxa6 {[%clk 0:02:42]} 9. Bb2 {[%clk 0:02:28]}  Be7 {[%clk 0:02:29]} 10. Bxg7 {[%clk 0:02:08]}  Rg8 {[%clk 0:02:27]} 11. Be5 {[%clk 0:02:09]}  Nb4 {[%clk 0:01:33]} 12. O-O {[%clk 0:02:00]}  Nd3 {[%clk 0:01:28]} 13. Bg3 {[%clk 0:01:21]}  h5 {[%clk 0:01:25]} 14. h4 {[%clk 0:01:10]}  Bd6 {[%clk 0:01:10]} 15. Bxd6 {[%clk 0:00:39]}  cxd6 {[%clk 0:01:07]} 16. Ng5 {[%clk 0:00:37]}  Ke7 {[%clk 0:01:01]} 17. Qxh5 {[%clk 0:00:34]}  Rg7 {[%clk 0:01:00]} 18. Qf3 {[%clk 0:00:29]}  Qxf3 {[%clk 0:00:22]} 19. Nxf3 {[%clk 0:00:30]}  e5 {[%clk 0:00:20]} 20. Ne1 {[%clk 0:00:28]}  Nb4 {[%clk 0:00:20]} 21. a3 {[%clk 0:00:21]}  Nd5 {[%clk 0:00:19]} 22. Rc1 {[%clk 0:00:21]}  f5 {[%clk 0:00:18]} 23. d4 {[%clk 0:00:09]}  Ke6 {[%clk 0:00:18]} 24. dxe5 {[%clk 0:00:09]}  dxe5 {[%clk 0:00:19]} 25. Nc2 {[%clk 0:00:06]}  Rag8 {[%clk 0:00:18]} 26. g3 {[%clk 0:00:06]}  f4 {[%clk 0:00:18]} 27. exf4 {[%clk 0:00:07]}  exf4 {[%clk 0:00:18]} 28. Nd4+ {[%clk 0:00:08]}  Ke5 {[%clk 0:00:18]} 29. Nc6+ {[%clk 0:00:03]}  Kf5 {[%clk 0:00:18]} 30. Nd4+ {[%clk 0:00:03]}  Ke4 {[%clk 0:00:17]} 31. Rcd1 {[%clk 0:00:02]}  fxg3 {[%clk 0:00:18]} 32. Rfe1+ {[%clk 0:00:02]}  Kf4 {[%clk 0:00:15]} 33. Ne6+ {[%clk 0:00:03]}  Kf3 {[%clk 0:00:15]} 34. Rd3+ {[%clk 0:00:03]}  Kg4 {[%clk 0:00:15]} 35. Rxg3+ {[%clk 0:00:03]}  Kxh4 {[%clk 0:00:15]} 36. Nxg7 {[%clk 0:00:02]}  Nf4 {[%clk 0:00:15]} 37. Re4 {[%clk 0:00:03]}  Rxg7 {[%clk 0:00:13]} 38. Rxf4+ {[%clk 0:00:03]}  Rg4 {[%clk 0:00:13]} 39. Rfxg4+ {[%clk 0:00:03]} 1-0


[Site "https://www.chess.com"]

[Event "Titled Tuesday Blitz August 02 Early 2022"]
[White "Hamley, Ryan"]
[Black "Wu, Rochelle"]
[WhiteFideId "30959497"]
[BlackFideId "30908132"]
[WhiteElo "2475"]
[BlackElo "2168"]
[Result "0-1"]
[Round "10"]
[TimeControl "180+1"]
[Date "2022.08.02"]
[WhiteClock "0:01:33"]
[BlackClock "0:01:52"]

1. d4 {[%clk 0:03:00]}  Nf6 {[%clk 0:02:58]} 2. c4 {[%clk 0:03:00]}  g6 {[%clk 0:02:58]} 3. Nc3 {[%clk 0:03:00]}  d5 {[%clk 0:02:58]} 4. Nf3 {[%clk 0:03:00]}  Bg7 {[%clk 0:02:58]} 5. Qb3 {[%clk 0:03:00]}  c6 {[%clk 0:02:58]} 6. cxd5 {[%clk 0:02:58]}  cxd5 {[%clk 0:02:58]} 7. Bg5 {[%clk 0:02:59]}  e6 {[%clk 0:02:55]} 8. e3 {[%clk 0:02:56]}  Nc6 {[%clk 0:02:54]} 9. Be2 {[%clk 0:02:55]}  O-O {[%clk 0:02:54]} 10. O-O {[%clk 0:02:55]}  a6 {[%clk 0:02:53]} 11. Rac1 {[%clk 0:02:52]}  h6 {[%clk 0:02:51]} 12. Bf4 {[%clk 0:02:52]}  Nh5 {[%clk 0:02:50]} 13. Bg3 {[%clk 0:02:46]}  f5 {[%clk 0:02:48]} 14. Rfd1 {[%clk 0:02:23]}  f4 {[%clk 0:02:47]} 15. exf4 {[%clk 0:02:23]}  Nxf4 {[%clk 0:02:48]} 16. Bf1 {[%clk 0:02:21]}  Qf6 {[%clk 0:02:37]} 17. Qc2 {[%clk 0:02:09]}  Bd7 {[%clk 0:02:25]} 18. Qd2 {[%clk 0:02:05]}  g5 {[%clk 0:02:23]} 19. Na4 {[%clk 0:02:01]}  Be8 {[%clk 0:02:22]} 20. Nc5 {[%clk 0:01:57]}  Bh5 {[%clk 0:02:17]} 21. Bxf4 {[%clk 0:01:38]}  gxf4 {[%clk 0:02:11]} 22. Nd7 {[%clk 0:01:34]}  Qf7 {[%clk 0:01:57]} 23. Nxf8 {[%clk 0:01:34]}  Rxf8 {[%clk 0:01:57]} 24. Be2 {[%clk 0:01:33]}  Bxf3 {[%clk 0:01:54]} 25. Bxf3 {[%clk 0:01:34]}  Nxd4 {[%clk 0:01:54]} 26. Bg4 {[%clk 0:01:34]}  Qg6 {[%clk 0:01:52]} 27. Bh3 {[%clk 0:01:33]}  Nf3+ {[%clk 0:01:52]} 0-1


[Site "https://www.chess.com"]